bitfinex-derivatives/quotes_BTCF0:USTF0_20250527
["timestamp","ask_amount","ask_price","bid_price","bid_amount"]
[1748366944344,0.03022666,110080.0,110070.0,1.53510993]
[1748366945146,0.03022666,110080.0,110070.0,1.30781545]
[1748366945346,0.03022666,110080.0,110070.0,1.53510993]
[1748366945746,0.06263626,110090.0,110080.0,0.1815995]
[1748366945747,2e-08,110090.0,110080.0,0.1815995]
[1748366945946,2e-08,110090.0,110080.0,1.56085086]
[1748366946139,2e-08,110090.0,110080.0,1.59812846]
[1748366946340,2e-08,110090.0,110080.0,2.10611358]
[1748366946851,2e-08,110090.0,110080.0,2.35711358]
[1748366947041,0.0019,110110.0,110100.0,0.1815665]
[1748366947342,0.0019,110110.0,110100.0,1.40984025]
[1748366947551,0.00202,110110.0,110100.0,1.47014025]
[1748366947746,0.0019,110110.0,110100.0,1.47014025]
[1748366947942,0.0019,110110.0,110100.0,1.481901]
[1748366948143,0.00202,110110.0,110100.0,1.481901]
[1748366948339,0.0019,110110.0,110100.0,1.481901]
[1748366948546,0.00202,110110.0,110100.0,1.25460652]
[1748366948843,0.00202,110110.0,110100.0,1.481901]
[1748366949247,0.00202,110110.0,110100.0,1.5086207]
[1748366949451,0.00202,110110.0,110100.0,1.5096207]
[1748366949835,0.0019,110110.0,110100.0,1.8724207]
[1748366950048,0.00202,110110.0,110100.0,1.850701]
[1748366950750,0.05803626,110120.0,110110.0,0.18155]
[1748366950751,0.00113626,110120.0,110110.0,0.18155]
[1748366950955,6e-08,110120.0,110110.0,1.38408726]
[1748366951160,6e-08,110120.0,110110.0,1.40806048]
[1748366951345,6e-08,110120.0,110110.0,1.46158485]
[1748366951544,0.05176287,110140.0,110130.0,0.181517]
[1748366951745,0.10216287,110140.0,110130.0,1.32961148]
[1748366951946,0.05466287,110140.0,110130.0,1.42721148]
[1748366952156,0.05478287,110140.0,110130.0,1.42721148]
[1748366952354,0.05478287,110140.0,110130.0,1.45389046]
[1748366952849,0.05578287,110140.0,110130.0,1.42821148]
[1748366953054,0.05578287,110140.0,110130.0,1.22759598]
[1748366953256,0.05578287,110140.0,110130.0,1.45789046]
[1748366953447,0.05478287,110140.0,110130.0,1.46089046]
[1748366953754,0.10338287,110140.0,110130.0,1.43421148]
[1748366954457,0.10202,110140.0,110130.0,1.43421148]
[1748366954657,0.05342,110140.0,110130.0,1.79501148]
[1748366954852,0.0533,110140.0,110130.0,1.79501148]
[1748366955158,0.00302,110140.0,110130.0,1.79501148]
[1748366955359,0.0029,110140.0,110130.0,1.79501148]
[1748366955559,0.00302,110140.0,110130.0,1.79501148]
[1748366956359,0.00302,110140.0,110130.0,1.44794571]
[1748366956558,0.09662,110140.0,110130.0,1.44794571]
[1748366956748,0.09662,110140.0,110130.0,1.44994571]
[1748366956749,0.09762,110140.0,110130.0,1.44994571]
[1748366958649,0.0975,110140.0,110130.0,1.44994571]
[1748366959156,0.09845995,110140.0,110130.0,1.44994571]
[1748366959855,0.09845995,110140.0,110130.0,1.34006571]
[1748366960050,0.09845995,110140.0,110130.0,1.44994571]
[1748366960970,0.09845995,110140.0,110130.0,1.01959354]
[1748366961149,0.09845995,110140.0,110130.0,0.92947354]
[1748366961655,0.09845995,110140.0,110130.0,1.14947354]
[1748366961851,0.09845995,110140.0,110130.0,1.37676802]
[1748366962355,0.10845995,110140.0,110130.0,0.90947354]
[1748366962546,0.09845995,110140.0,110130.0,0.90947354]
[1748366962951,0.09845995,110140.0,110130.0,1.13676802]
[1748366963259,0.09845995,110140.0,110130.0,1.41676802]
[1748366963447,0.09857995,110140.0,110130.0,1.51686802]
[1748366963649,0.09762,110140.0,110130.0,1.51686802]
[1748366964358,0.0975,110140.0,110130.0,1.30686802]
[1748366965355,0.09845995,110140.0,110130.0,1.30686802]
[1748366966169,0.09845995,110140.0,110130.0,1.07957354]
[1748366966463,0.27995785,110140.0,110130.0,0.68807654]
[1748366966759,1.39857233,110140.0,110130.0,0.31342231]
[1748366967063,1.17127785,110140.0,110130.0,0.49493671]
[1748366967455,1.17127785,110140.0,110130.0,0.31342231]
[1748366967855,1.17127785,110140.0,110130.0,0.49493671]
[1748366968065,1.39857233,110140.0,110130.0,0.49493671]
[1748366968264,1.39857233,110140.0,110130.0,0.31342231]
[1748366968463,1.39757233,110140.0,110130.0,0.48693661]
[1748366968664,1.39661238,110140.0,110130.0,0.32793661]
[1748366969259,1.39757233,110140.0,110130.0,0.32793661]
[1748366973469,1.39757233,110140.0,110130.0,0.14642231]
[1748366974179,1.39757233,110140.0,110130.0,0.32793641]
[1748366974471,1.17027785,110140.0,110130.0,0.32793641]
[1748366975264,0.63975785,110140.0,110130.0,0.32793641]
[1748366975465,0.09745995,110140.0,110130.0,0.55523089]
[1748366975674,0.09745995,110140.0,110130.0,1.47310987]
[1748366975675,0.05075995,110140.0,110130.0,1.47310987]
[1748366975866,0.00397995,110140.0,110130.0,1.55631089]
[1748366976069,0.00397995,110140.0,110130.0,1.60983526]
[1748366976368,0.00385995,110140.0,110130.0,1.60983526]
[1748366976571,0.00397995,110140.0,110130.0,1.60983526]
[1748366976981,0.00397995,110140.0,110130.0,1.63689119]
[1748366977355,0.00385995,110140.0,110130.0,1.63689119]
[1748366977561,0.00397995,110140.0,110130.0,1.63689119]
[1748366979369,0.00397995,110140.0,110130.0,1.64089119]
[1748366979765,0.00397995,110140.0,110130.0,1.64389119]
[1748366980170,0.00397995,110140.0,110130.0,1.57682607]
[1748366982273,0.00397995,110140.0,110130.0,1.63047063]
[1748366984473,5e-08,110140.0,110130.0,1.66762207]
[1748366984775,0.00013626,110150.0,110140.0,0.1814976]
[1748366984979,0.00013626,110150.0,110140.0,1.3791417]
[1748366985165,0.00013626,110150.0,110140.0,1.15184722]
[1748366985363,0.00013626,110150.0,110140.0,1.4889017]
[1748366985666,0.04943626,110150.0,110140.0,1.47547636]
[1748366985973,0.04943626,110150.0,110140.0,1.47747636]
[1748366987470,0.04943626,110150.0,110140.0,1.47647636]
[1748366987669,0.04943626,110150.0,110140.0,1.47847636]
[1748366987875,0.04943626,110150.0,110140.0,1.36871636]
[1748366988072,0.04943626,110150.0,110140.0,1.36671636]
[1748366988374,0.04943626,110150.0,110140.0,1.47743636]
[1748366989167,0.23091746,110150.0,110140.0,1.14042188]
[1748366989369,0.32811746,110150.0,110140.0,1.25014188]
[1748366989570,0.32811746,110150.0,110140.0,1.07014188]
[1748366990363,0.32811746,110150.0,110140.0,1.07456419]
[1748366991074,0.14663626,110150.0,110140.0,1.07456419]
[1748366991575,0.32811746,110150.0,110140.0,1.30185867]
[1748366992167,0.32811746,110150.0,110140.0,0.91121991]
[1748366994376,0.32811746,110150.0,110140.0,0.95141656]
[1748366994677,0.32811746,110150.0,110140.0,0.91121991]
[1748366996161,0.34811746,110150.0,110140.0,0.40041991]
[1748366996369,0.32811746,110150.0,110140.0,0.80141669]
[1748366997377,0.32811746,110150.0,110140.0,0.44061669]
[1748366997572,0.32811746,110150.0,110140.0,0.80141669]
[1748366998180,0.32811746,110150.0,110140.0,1.02871117]
[1748366998371,0.04943626,110150.0,110140.0,1.03851439]
[1748366998571,0.04943626,110150.0,110140.0,1.36851439]
[1748366998879,0.04943626,110150.0,110140.0,1.42213867]
[1748366998880,0.04955626,110150.0,110140.0,1.42213867]
[1748367000570,0.04955626,110150.0,110140.0,1.42313867]
[1748367001182,0.26103746,110150.0,110140.0,1.07556419]
[1748367001388,0.30773746,110150.0,110140.0,1.07556419]
[1748367001680,0.27773746,110150.0,110140.0,1.07456419]
[1748367001883,0.27773746,110150.0,110140.0,1.07656419]
[1748367002179,0.51503194,110150.0,110140.0,0.18204659]
[1748367002371,1.55633995,110150.0,110140.0,0.1686586]
[1748367002568,1.55633995,110150.0,110140.0,0.19106034]
[1748367002780,1.55633995,110150.0,110140.0,0.15082405]
[1748367002978,1.55633995,110150.0,110140.0,0.14882405]
[1748367003177,1.55633995,110150.0,110140.0,0.121]
[1748367003581,1.55633995,110150.0,110140.0,0.12542231]
[1748367004069,1.56206355,110150.0,110140.0,0.12442231]
[1748367004273,1.56406355,110150.0,110140.0,0.15124636]
[1748367004476,1.56406355,110150.0,110140.0,0.12442231]
[1748367004676,1.56506355,110150.0,110140.0,0.12442231]
[1748367007578,1.79808153,110150.0,110140.0,0.00442231]
[1748367007783,1.79808153,110150.0,110120.0,0.02696031]
[1748367007784,0.1815141,110130.0,110120.0,0.02696031]
[1748367007985,1.70521218,110130.0,110120.0,0.02013626]
[1748367008174,1.84541618,110130.0,110120.0,0.02013626]
[1748367008380,1.89241618,110130.0,110120.0,0.02013626]
[1748367008679,0.7180341,110130.0,110120.0,0.20166686]
[1748367008872,0.0964,110130.0,110120.0,0.27819091]
[1748367009074,0.53652,110130.0,110120.0,0.92398494]
[1748367009276,0.48952,110130.0,110120.0,1.21498494]
[1748367009478,0.48952,110130.0,110120.0,1.25622123]
[1748367009679,0.48952,110130.0,110120.0,1.02320315]
[1748367009982,0.0494,110130.0,110120.0,1.02320315]
[1748367010181,0.63317206,110150.0,110140.0,0.1814976]
[1748367010182,0.36093626,110150.0,110140.0,0.1814976]
[1748367010388,1.02893746,110150.0,110140.0,0.38829714]
[1748367010584,1.02893746,110150.0,110140.0,0.43349714]
[1748367010789,1.02893746,110150.0,110140.0,0.43791945]
[1748367010983,0.58881746,110150.0,110140.0,0.43791945]
[1748367011186,1.02893746,110150.0,110140.0,0.43791945]
[1748367011389,1.07723746,110150.0,110140.0,0.38791945]
[1748367011793,0.63811746,110150.0,110140.0,0.38791945]
[1748367011992,1.07823746,110150.0,110140.0,0.43411945]
[1748367012579,1.08023746,110150.0,110140.0,0.43411945]
[1748367013583,1.07823746,110150.0,110140.0,0.43411945]
[1748367013793,1.08023746,110150.0,110140.0,0.43411945]
[1748367014788,1.07923746,110150.0,110140.0,0.43411945]
[1748367014988,1.08023746,110150.0,110140.0,0.43411945]
[1748367016086,1.08023746,110150.0,110140.0,0.40731991]
[1748367016993,1.07923746,110150.0,110140.0,0.40731991]
[1748367017290,0.00213626,110150.0,110140.0,1.46753753]
[1748367017492,0.00225626,110150.0,110140.0,1.4809393]
[1748367018485,0.00125626,110150.0,110140.0,1.4829393]
[1748367018885,0.00013626,110150.0,110140.0,1.4849393]
[1748367019085,0.00013626,110150.0,110140.0,1.44473799]
[1748367019086,0.00025626,110150.0,110140.0,1.44473799]
[1748367019689,0.00025626,110150.0,110140.0,1.44373799]
[1748367019888,0.00025626,110150.0,110140.0,1.44273799]
[1748367020589,0.00025626,110150.0,110140.0,1.44373799]
[1748367021180,0.00025626,110150.0,110140.0,1.44473799]
[1748367023695,0.18173736,110150.0,110140.0,1.25191138]
[1748367023903,0.04955626,110150.0,110140.0,1.25191138]
[1748367024093,0.23103746,110150.0,110140.0,1.25191138]
[1748367024290,0.23103746,110150.0,110140.0,1.14231138]
[1748367025088,0.23103746,110150.0,110140.0,1.10211991]
[1748367025297,0.23103746,110150.0,110140.0,1.10011991]
[1748367026089,0.04955626,110150.0,110140.0,1.10011991]
[1748367026394,0.04955626,110150.0,110140.0,1.15374419]
[1748367027191,0.00025626,110150.0,110140.0,1.38676227]
[1748367027394,0.00013626,110150.0,110140.0,1.38676227]
[1748367027597,0.00025626,110150.0,110140.0,1.38676227]
[1748367029001,0.00025626,110150.0,110140.0,1.38876227]
[1748367029692,0.00025626,110150.0,110140.0,1.15574419]
[1748367029898,0.00025626,110150.0,110140.0,1.38876227]
[1748367030512,0.00013626,110150.0,110140.0,1.38876227]
[1748367030811,0.00025626,110150.0,110140.0,1.38876227]
[1748367031797,0.00025626,110150.0,110140.0,1.74956227]
[1748367033498,6e-08,110150.0,110140.0,2.18940227]
[1748367033698,6e-08,110150.0,110140.0,2.22656599]
[1748367033903,0.001,110160.0,110150.0,0.1814811]
[1748367034109,0.001,110160.0,110150.0,1.26155936]
[1748367034296,0.001,110160.0,110150.0,1.534216]
[1748367034603,0.00112,110160.0,110150.0,1.534216]
[1748367035103,0.00112,110160.0,110150.0,1.96064645]
[1748367035307,0.05022,110160.0,110150.0,1.96064645]
[1748367036111,0.05022,110160.0,110150.0,1.96264645]
[1748367036807,0.05022,110160.0,110150.0,1.96464645]
[1748367037299,0.2316847,110160.0,110150.0,1.29784981]
[1748367037497,0.2765847,110160.0,110150.0,1.29784981]
[1748367038109,0.05022,110160.0,110150.0,1.52480645]
[1748367038313,0.0501,110160.0,110150.0,1.52480645]
[1748367038525,0.2316847,110160.0,110150.0,1.52480645]
[1748367039604,0.05022,110160.0,110150.0,1.52480645]
[1748367039915,0.05022,110160.0,110150.0,1.21480645]
[1748367040110,0.05022,110160.0,110150.0,1.22480645]
[1748367041601,0.2316847,110160.0,110150.0,1.22480645]
[1748367041812,0.2316847,110160.0,110150.0,1.17780645]
[1748367042014,0.2775847,110160.0,110150.0,1.22420645]
[1748367044005,0.2775847,110160.0,110150.0,0.99724981]
[1748367044607,0.2775847,110160.0,110150.0,0.95084981]
[1748367045007,0.2775847,110160.0,110150.0,0.94084981]
[1748367045308,0.2775847,110160.0,110150.0,0.73984981]
[1748367045518,0.7172647,110160.0,110150.0,0.19756871]
[1748367045708,1.63580134,110160.0,110150.0,0.144]
[1748367046010,1.63580134,110160.0,110150.0,0.18423998]
[1748367047111,1.63580134,110160.0,110150.0,0.36572108]
[1748367047499,1.54502134,110160.0,110150.0,0.39255514]
[1748367047715,1.54502134,110160.0,110150.0,0.39055514]
[1748367047906,1.54502134,110160.0,110150.0,0.20907404]
[1748367048100,1.54702134,110160.0,110150.0,0.20707404]
[1748367048716,1.99720134,110160.0,110150.0,0.20707404]
[1748367049008,1.99720134,110160.0,110150.0,0.14]
[1748367050414,1.99720134,110160.0,110150.0,0.14442231]
[1748367051315,1.99720134,110160.0,110140.0,0.00013626]
[1748367051316,0.1814811,110150.0,110140.0,0.00013626]
[1748367051523,1.22453774,110150.0,110140.0,0.00013626]
[1748367051820,1.61362575,110150.0,110140.0,0.00013626]
[1748367052012,0.1814976,110140.0,110130.0,0.06707404]
[1748367052218,1.64419424,110140.0,110130.0,0.10707404]
[1748367052407,1.64419424,110140.0,110130.0,0.06683406]
[1748367054222,1.64419424,110140.0,110130.0,0.06783406]
[1748367054416,1.64419424,110140.0,110130.0,0.06883406]
[1748367056120,1.64419424,110140.0,110130.0,0.042]
[1748367057810,1.75363424,110140.0,110130.0,0.042]
[1748367059828,1.76464934,110140.0,110130.0,0.042]
[1748367060708,1.85544534,110140.0,110130.0,0.042]
[1748367062123,1.8693387,110140.0,110130.0,0.042]
[1748367062517,1.19172696,110140.0,110130.0,0.2235141]
[1748367062718,1.63132696,110140.0,110130.0,0.1372]
[1748367062924,1.63144696,110140.0,110130.0,0.1372]
[1748367063311,0.9777176,110140.0,110130.0,0.3187141]
[1748367063519,0.09542,110140.0,110130.0,0.54567074]
[1748367063816,0.6694976,110140.0,110130.0,0.90647074]
[1748367064011,0.6696176,110140.0,110130.0,0.91721874]
[1748367064414,0.6694976,110140.0,110130.0,0.9440528]
[1748367064618,0.2300176,110140.0,110130.0,0.72151847]
[1748367064813,0.27237186,110150.0,110140.0,0.1814976]
[1748367065017,0.75777186,110150.0,110140.0,0.3602976]
[1748367065217,0.75777186,110150.0,110140.0,0.4521976]
[1748367065718,0.75777186,110150.0,110140.0,0.46560327]
[1748367066226,0.75777186,110150.0,110140.0,0.4521976]
[1748367067917,0.04593626,110150.0,110140.0,0.4521976]
[1748367068129,0.62113736,110150.0,110140.0,1.0859883]
[1748367068425,0.62125736,110150.0,110140.0,0.8759883]
[1748367069132,0.62125736,110150.0,110140.0,0.64903166]
[1748367069323,0.66745736,110150.0,110140.0,0.64903166]
[1748367070621,0.66745736,110150.0,110140.0,0.66235255]
[1748367072123,0.22793736,110150.0,110140.0,0.66235255]
[1748367072325,0.69737736,110150.0,110140.0,0.31085495]
[1748367072535,0.74417736,110150.0,110140.0,0.53259253]
[1748367073120,0.74417736,110150.0,110140.0,0.49235255]
[1748367073519,0.74417736,110150.0,110140.0,0.51927164]
[1748367075325,0.74417736,110150.0,110140.0,0.49243758]
[1748367077025,0.66553736,110150.0,110140.0,0.31093998]
[1748367077224,1.58116091,110150.0,110130.0,0.04466229]
[1748367077421,0.92629194,110140.0,110130.0,0.00589049]
[1748367077618,0.1815117,110130.0,110120.0,0.00013626]
[1748367077818,1.4473717,110130.0,110120.0,0.07013626]
[1748367078130,1.67432834,110130.0,110120.0,0.07013626]
[1748367079624,1.4473717,110130.0,110120.0,0.07013626]
[1748367080232,1.67432834,110130.0,110120.0,0.07013626]
[1748367080941,1.4473717,110130.0,110120.0,0.07013626]
[1748367082432,1.67432834,110130.0,110120.0,0.07013626]
[1748367084226,1.4473717,110130.0,110120.0,0.07013626]
[1748367084428,1.67432834,110130.0,110120.0,0.07013626]
[1748367085734,1.0080117,110130.0,110120.0,0.25166586]
[1748367085924,0.9601117,110130.0,110120.0,0.34276586]
[1748367086130,1.1994317,110130.0,110120.0,0.34276586]
[1748367086430,0.3993117,110130.0,110120.0,0.5697225]
[1748367086636,0.3993117,110130.0,110120.0,0.9305225]
[1748367086637,0.0478,110130.0,110120.0,0.9305225]
[1748367086839,0.6685931,110130.0,110120.0,0.9405225]
[1748367087737,0.0478,110130.0,110120.0,0.9405225]
[1748367087932,0.7569217,110140.0,110130.0,0.1815131]
[1748367088128,0.8055217,110140.0,110130.0,0.67796974]
[1748367088433,0.0486,110140.0,110130.0,0.67796974]
[1748367088643,0.27237466,110150.0,110140.0,0.1814967]
[1748367088825,0.78021466,110150.0,110140.0,0.4057967]
[1748367089931,0.78321466,110150.0,110140.0,0.4057967]
[1748367091037,0.34397466,110150.0,110140.0,0.4057967]
[1748367091237,0.78317466,110150.0,110140.0,0.4057967]
[1748367092536,0.27860196,110150.0,110140.0,0.63275334]
[1748367092741,0.23322986,110150.0,110140.0,0.99355334]
[1748367092936,0.05185626,110150.0,110140.0,1.04355334]
[1748367093136,0.18473646,110150.0,110140.0,1.04355334]
[1748367093339,0.18461646,110150.0,110140.0,1.11355334]
[1748367093539,0.18473646,110150.0,110140.0,1.11355334]
[1748367094143,0.00325626,110150.0,110140.0,1.11355334]
[1748367094333,0.00313626,110150.0,110140.0,1.78271334]
[1748367094535,0.00025626,110150.0,110140.0,1.5557567]
[1748367094731,0.00025626,110150.0,110140.0,1.34355334]
[1748367094732,0.18173646,110150.0,110140.0,1.34355334]
[1748367094928,0.18161646,110150.0,110140.0,1.34355334]
[1748367095131,0.22633646,110150.0,110140.0,1.34355334]
[1748367095537,0.22933646,110150.0,110140.0,1.39812205]
[1748367095846,0.22933646,110150.0,110140.0,1.39912205]
[1748367096036,0.22933646,110150.0,110140.0,1.40354436]
[1748367096336,0.22933646,110150.0,110140.0,1.07582772]
[1748367097437,0.22933646,110150.0,110140.0,1.02225901]
[1748367098036,0.22933646,110150.0,110140.0,1.24921565]
[1748367100742,0.04785626,110150.0,110140.0,1.24921565]
[1748367100943,0.00325626,110150.0,110140.0,1.47921565]
[1748367101243,0.18473636,110150.0,110140.0,1.29921565]
[1748367102241,0.18473636,110150.0,110140.0,1.12576164]
[1748367102446,0.18473636,110150.0,110140.0,1.35271828]
[1748367103041,0.23083636,110150.0,110140.0,1.35271828]
[1748367103242,0.04935626,110150.0,110140.0,1.35271828]
[1748367104251,0.23083646,110150.0,110140.0,1.29921565]
[1748367105548,0.23083646,110150.0,110140.0,1.33931157]
[1748367106139,0.04935626,110150.0,110140.0,1.33931157]
[1748367106340,0.04923626,110150.0,110140.0,1.33931157]
[1748367106547,0.04935626,110150.0,110140.0,1.33931157]
[1748367106751,0.04935626,110150.0,110140.0,1.29921565]
[1748367107254,0.04935626,110150.0,110140.0,1.32593481]
[1748367108156,0.00325626,110150.0,110140.0,1.32593481]
[1748367108447,0.001,110160.0,110150.0,0.1814802]
[1748367108655,0.0492,110170.0,110160.0,0.1814637]
[1748367108953,0.0492,110170.0,110160.0,0.9566637]
[1748367109155,0.2307673,110170.0,110160.0,1.21033644]
[1748367109347,0.04932,110170.0,110160.0,1.21033644]
[1748367109648,0.2307673,110170.0,110160.0,1.25583644]
[1748367111050,0.2307673,110170.0,110160.0,1.0288798]
[1748367111358,0.2744673,110170.0,110160.0,1.0021637]
[1748367111547,0.2754673,110170.0,110160.0,1.0021637]
[1748367112046,0.2754673,110170.0,110160.0,1.01237086]
[1748367112249,0.2754673,110170.0,110160.0,0.90337086]
[1748367112447,0.2754673,110170.0,110160.0,1.01237086]
[1748367113050,0.2754673,110170.0,110160.0,1.0256853]
[1748367113253,0.2754673,110170.0,110160.0,0.9166853]
[1748367113452,0.2754673,110170.0,110160.0,1.0256853]
[1748367113652,0.2754673,110170.0,110160.0,1.0524014]
[1748367114943,0.2744673,110170.0,110160.0,1.0534014]
[1748367115156,0.2744673,110170.0,110160.0,0.7235014]
[1748367115360,0.50142394,110170.0,110160.0,0.7235014]
[1748367115548,0.50142394,110170.0,110160.0,0.73688122]
[1748367115754,0.2744673,110170.0,110160.0,0.73688122]
[1748367117252,0.7132673,110170.0,110160.0,0.73688122]
[1748367117566,0.7132673,110170.0,110160.0,0.83284151]
[1748367118660,0.7132673,110170.0,110160.0,0.79274559]
[1748367118960,0.7132673,110170.0,110160.0,0.79276463]
[1748367119270,0.7132673,110170.0,110160.0,0.75028793]
[1748367120348,1.37102394,110170.0,110160.0,0.18451328]
[1748367120656,1.37102394,110170.0,110160.0,0.21131011]
[1748367120861,1.37102394,110170.0,110160.0,0.19799567]
[1748367121047,1.59102394,110170.0,110160.0,0.19799567]
[1748367121362,1.59102394,110170.0,110160.0,0.15779683]
[1748367121557,1.59102394,110170.0,110160.0,0.131]
[1748367121747,1.59102394,110170.0,110160.0,0.15779683]
[1748367122153,1.55642394,110170.0,110160.0,0.15779683]
[1748367122562,1.55742394,110170.0,110160.0,0.15679683]
[1748367123346,1.55842394,110170.0,110160.0,0.15679683]
[1748367125463,1.55842394,110170.0,110160.0,0.16121914]
[1748367127662,1.50012394,110170.0,110160.0,0.16121914]
[1748367130760,1.51055497,110170.0,110160.0,0.16121914]
[1748367131261,1.51055497,110170.0,110160.0,0.13442231]
[1748367133064,1.61955497,110170.0,110160.0,0.13442231]
[1748367135560,1.71032697,110170.0,110160.0,0.13442231]
[1748367138065,1.76648178,110170.0,110160.0,0.13442231]
[1748367138374,1.71032697,110170.0,110160.0,0.00442231]
[1748367138568,1.76648178,110170.0,110160.0,0.00442231]
[1748367138763,0.1814623,110160.0,110150.0,0.001498]
[1748367138963,1.08921894,110160.0,110150.0,0.011498]
[1748367139362,1.40695558,110160.0,110150.0,1e-07]
[1748367139569,0.1815117,110130.0,110120.0,0.09506356]
[1748367139774,0.6901517,110130.0,110120.0,0.72388913]
[1748367140774,0.91710834,110130.0,110120.0,0.54236093]
[1748367140963,0.91710834,110130.0,110120.0,0.18156093]
[1748367141167,0.91710834,110130.0,110120.0,0.36309023]
[1748367141677,0.6901517,110130.0,110120.0,0.36309023]
[1748367142175,0.6901517,110130.0,110120.0,0.37318615]
[1748367142377,0.6901517,110130.0,110120.0,0.33298731]
[1748367142580,0.6901517,110130.0,110120.0,0.37418615]
[1748367143376,0.6901517,110130.0,110120.0,0.33398731]
[1748367143679,1.27790834,110130.0,110120.0,0.14236209]
[1748367143864,1.50790834,110130.0,110120.0,0.14236209]
[1748367144068,1.543359,110130.0,110120.0,0.14236209]
[1748367145273,1.2809517,110130.0,110120.0,0.32389139]
[1748367147669,1.50790834,110130.0,110120.0,0.32389139]
[1748367150367,0.8423117,110130.0,110120.0,0.32389139]
[1748367150579,1.0809117,110130.0,110120.0,0.32389139]
[1748367151276,1.30786834,110130.0,110120.0,0.32389139]
[1748367151675,1.30786834,110130.0,110120.0,0.32389029]
[1748367151879,1.30786834,110130.0,110120.0,0.14236209]
[1748367153187,1.62674834,110130.0,110120.0,0.14236209]
[1748367154489,1.66208554,110130.0,110120.0,0.14236209]
[1748367154680,1.62674834,110130.0,110120.0,0.14236209]
[1748367154985,1.62674834,110130.0,110120.0,0.1467844]
[1748367155577,1.66208657,110130.0,110120.0,0.1467844]
[1748367156483,1.66208791,110130.0,110120.0,0.1467844]
[1748367157585,1.66208791,110130.0,110120.0,0.14542231]
[1748367158089,1.75289191,110130.0,110120.0,0.14542231]
[1748367160194,1.71755234,110130.0,110120.0,0.14542231]
[1748367160488,1.71755234,110130.0,110120.0,0.00542231]
[1748367160489,1.97982584,110130.0,110120.0,0.00542231]
[1748367160695,1.7528692,110130.0,110120.0,0.00542231]
[1748367162098,1.97982584,110130.0,110120.0,0.00542231]
[1748367162401,1.97982584,110130.0,110120.0,1e-08]
[1748367163397,2.03598065,110130.0,110120.0,1e-08]
[1748367163897,2.03798065,110130.0,110120.0,1e-08]
[1748367165200,2.03799286,110130.0,110120.0,1e-08]
[1748367166096,1.81103622,110130.0,110120.0,1e-08]
[1748367167797,0.0453892,110110.0,110080.0,0.04285561]
[1748367168001,0.40853434,110090.0,110080.0,0.36444981]
[1748367168300,0.48853434,110090.0,110080.0,0.18285561]
[1748367168499,0.48853434,110090.0,110080.0,0.36456981]
[1748367168995,0.48853434,110090.0,110080.0,0.1963735]
[1748367169198,0.48853434,110090.0,110080.0,0.3799677]
[1748367169396,1.28781434,110090.0,110080.0,0.18497561]
[1748367169799,1.28781434,110090.0,110080.0,0.18485561]
[1748367170191,1.28781434,110090.0,110080.0,0.18497561]
[1748367170910,1.28781434,110090.0,110080.0,0.18785561]
[1748367171102,1.28781434,110090.0,110080.0,0.18797561]
[1748367180406,1.28781434,110090.0,110080.0,0.14777677]
[1748367180607,1.0608577,110090.0,110080.0,0.18797561]
[1748367180807,0.6223777,110090.0,110080.0,0.14777677]
[1748367181108,0.2615777,110090.0,110080.0,0.32937177]
[1748367181304,0.6998977,110090.0,110080.0,0.36957061]
[1748367181804,0.6198977,110090.0,110080.0,0.36957061]
[1748367183209,0.1815777,110090.0,110080.0,0.36957061]
[1748367184421,0.40853434,110090.0,110080.0,0.19239792]
[1748367184910,0.40853434,110090.0,110080.0,0.37399292]
[1748367185107,0.40853434,110090.0,110080.0,0.19239792]
[1748367185302,0.40853434,110090.0,110080.0,0.37399292]
[1748367186004,0.1815777,110090.0,110080.0,0.37399292]
[1748367186596,0.1815777,110090.0,110080.0,0.74479292]
[1748367186804,0.1815777,110090.0,110080.0,0.95479292]
[1748367187204,0.1815777,110090.0,110080.0,0.75479292]
[1748367187397,0.1815777,110090.0,110080.0,0.71459408]
[1748367188909,0.67392121,110090.0,110080.0,0.19236157]
[1748367189105,0.67392121,110090.0,110080.0,0.19248157]
[1748367189300,0.67392121,110090.0,110080.0,0.19236157]
[1748367189704,0.67392121,110090.0,110080.0,0.19248157]
[1748367189705,0.78264121,110090.0,110080.0,0.19248157]
[1748367189905,0.181595,110080.0,110070.0,0.00104473]
[1748367190111,1.83989515,110080.0,110070.0,0.04104473]
[1748367190299,1.61293851,110080.0,110070.0,0.04104473]
[1748367190498,1.57755164,110080.0,110070.0,0.04116473]
[1748367190814,1.61293813,110080.0,110070.0,0.04116473]
[1748367191699,1.61325814,110080.0,110070.0,0.04116473]
[1748367192107,1.61325814,110080.0,110070.0,0.04216473]
[1748367192310,1.62343723,110080.0,110070.0,0.04216473]
[1748367192606,1.61325814,110080.0,110070.0,0.04216473]
[1748367192913,1.61325814,110080.0,110070.0,0.04316473]
[1748367194312,1.17505814,110080.0,110070.0,0.04316473]
[1748367194507,1.72193814,110080.0,110070.0,0.04316473]
[1748367194815,1.72198669,110080.0,110070.0,0.04316473]
[1748367195315,1.17510669,110080.0,110070.0,0.04316473]
[1748367195613,1.72194669,110080.0,110070.0,0.04316473]
[1748367195805,1.17510669,110080.0,110070.0,0.22477623]
[1748367196006,0.542395,110080.0,110070.0,0.22477623]
[1748367196209,0.789755,110080.0,110070.0,0.22477623]
[1748367196514,0.789715,110080.0,110070.0,0.58557623]
[1748367197111,0.351595,110080.0,110070.0,0.58557623]
[1748367197322,0.789715,110080.0,110070.0,0.58557623]
[1748367197813,0.619715,110080.0,110070.0,0.58557623]
[1748367199615,0.619715,110080.0,110070.0,0.58999854]
[1748367200320,0.181595,110080.0,110070.0,0.58999854]
[1748367200506,0.75734672,110090.0,110080.0,0.181595]
[1748367200823,0.75734672,110090.0,110080.0,0.301595]
[1748367201203,0.18307522,110090.0,110080.0,0.90935164]
[1748367201514,0.62111522,110090.0,110080.0,0.90935164]
[1748367201912,0.18307522,110090.0,110080.0,0.90935164]
[1748367202116,0.18307522,110090.0,110080.0,0.682395]
[1748367202422,0.18407522,110090.0,110080.0,1.05369427]
[1748367202609,0.18507522,110090.0,110080.0,0.96285427]
[1748367203024,0.18507522,110090.0,110080.0,0.73589763]
[1748367207922,0.41203186,110090.0,110080.0,0.73601763]
[1748367208109,0.20507522,110090.0,110080.0,0.71601763]
[1748367209810,0.20507522,110090.0,110080.0,0.662515]
[1748367210207,0.20507522,110090.0,110080.0,0.70272058]
[1748367211626,0.20507522,110090.0,110080.0,0.92967722]
[1748367211821,0.62291522,110090.0,110080.0,0.92967722]
[1748367212625,0.62291522,110090.0,110080.0,0.70272058]
[1748367213628,0.62291522,110090.0,110080.0,0.71272058]
[1748367214012,0.00348332,110090.0,110080.0,0.71272058]
[1748367214212,0.00212,110090.0,110080.0,1.29031164]
[1748367214424,0.00212,110090.0,110080.0,1.34381427]
[1748367214629,0.00212,110090.0,110080.0,1.25297427]
[1748367214824,0.00212,110090.0,110080.0,1.34381427]
[1748367215020,0.1836985,110090.0,110080.0,1.34381427]
[1748367215210,0.1826985,110090.0,110080.0,1.34381427]
[1748367215411,0.00212,110090.0,110080.0,1.34381427]